Cogmind - Beta 15 @@@ ROGUE MODE // 2025.05.08 @ 15:40:22 Player: celerysam Result: Destroyed by OS-XVM(R) with Subdweller Machine Gun Performance ------------- Evolutions (0) 0 Regions Visited (3) 600 Robots Destroyed (11) 55 Value Destroyed (350) 350 Prototype IDs (0) 0 Alien Tech Used (0) 0 Bonus (30) 30 TOTAL SCORE: 1035 Bonus ------- Follower Combat Kills 30 Cogmind --------- Core Integrity 0/250 Matter 149/300 Energy 198/200 System Corruption 0% Temperature Cool (0) Movement Rolling (120) Ox1 Location -10/Subcaves Parts ------- > --- POWER (1) -------- Subdweller Power Source > --- PROPULSION (2) --- Subdweller Monowheel Subdweller Monowheel > --- UTILITY (2) ------ High-capacity Storage Unit Makeshift Light Armor Plating > --- WEAPON (2) ------- Rocket Launcher > --- INVENTORY (20) --- Ion Engine Subdweller Power Source Light Treads Light Treads Spiked Treads Aluminum Leg Aluminum Leg Heat Sink Small Storage Unit Subdweller Optics Scrap Shield EM Pulse Gun Riot Gun Particle Gun Subdweller Laser Subdweller Beam Cannon Subdweller Machine Gun Subdweller Machine Gun Battle Cannon Peak State ------------ > --- POWER ------------ Subdweller Power Source > --- PROPULSION ------- Subdweller Monowheel Subdweller Monowheel > --- UTILITY ---------- High-capacity Storage Unit Makeshift Light Armor Plating > --- WEAPON ----------- Subdweller Machine Gun Rocket Launcher > --- INVENTORY -------- Ion Engine Subdweller Power Source Light Treads Light Treads Spiked Treads Aluminum Leg Aluminum Leg Heat Sink Small Storage Unit Subdweller Optics Scrap Shield EM Pulse Gun Riot Gun Particle Gun Subdweller Laser Subdweller Beam Cannon Subdweller Machine Gun Battle Cannon Battle Cannon [Rating: 18] Favorites ----------- Power Light Ion Engine Engine Light Ion Engine Propulsion Wheel Leg Aluminum Leg Wheel Wheel Utility High-capacity Storage Unit Device Heat Sink Storage High-capacity Storage Unit Protection Makeshift Light Armor Plating Weapon Light Assault Rifle Energy Gun EM Pulse Gun Ballistic Gun Light Assault Rifle Ballistic Cannon Battle Cannon Launcher Rocket Launcher Build | -11 -10 -10 -10 ------- Run | Yrd Mat Min Sub Slots Evolved . | . . . . Power . | . . . . Propulsion . | . . . . Utility . | . . . . Weapon . | . . . . Parts Attached 20 | 7 4 . 9 Power 2 | 1 . . 1 Engine 2 | 1 . . 1 Core . | . . . . Reactor . | . . . . Propulsion 7 | 2 2 . 3 Treads . | . . . . Leg 2 | 2 . . . Wheel 5 | . 2 . 3 Hover . | . . . . Flight . | . . . . Utility 4 | 1 2 . 1 Device 1 | . 1 . . Storage 2 | 1 1 . . Processor . | . . . . Hackware . | . . . . Protection 1 | . . . 1 Artifact . | . . . . Weapon 7 | 3 . . 4 Energy Gun 1 | 1 . . . Energy Cannon . | . . . . Ballistic Gun 3 | 2 . . 1 Ballistic Cannon 2 | . . . 2 Launcher 1 | . . . 1 Special Weapon . | . . . . Impact Weapon . | . . . . Slashing Weapon . | . . . . Piercing Weapon . | . . . . Special Melee Weapon . | . . . . Unidentified Prototypes . | . . . . Parts Lost 2 | . . . 2 Power . | . . . . Propulsion 1 | . . . 1 Utility . | . . . . Weapon 1 | . . . 1 Highest Loss Streak 1 | . . . 1 To Critical Strikes . | . . . . Average Backups 12 | 4 6 7 14 Power 1 | . 1 1 1 Propulsion 4 | 2 4 4 4 Utility 1 | . . 1 2 Weapon 4 | 1 1 1 5 Tool/Special . | . . . . Unused Backups 12 | . . . 12 Power 2 | . . . 2 Propulsion 3 | . . . 3 Utility 2 | . . . 2 Weapon 5 | . . . 5 Tool/Special . | . . . . Average Slot Usage (%) 99 | . 97 100 99 Engine 14 | . 14 14 14 Leg 1 | . 11 . . Wheel 26 | . 16 28 27 Device 8 | . 11 14 6 Storage 14 | . 14 14 14 Protection 5 | . . . 7 Ballistic Gun 21 | . 28 28 18 Ballistic Cannon 1 | . . . 1 Launcher 5 | . . . 7 Peak Build Rating 18 | 6 7 7 18 Average Rating 10 | 4 6 7 12 On Entrance 5 | . 6 7 7 Naked Turns . | . . . . Heaviest Build 57 | 10 46 46 57 Greatest Support 40 | 20 26 26 40 Greatest Overweight (x) 5 | . 1 1 5 Average Overweight (x) . | . . 1 1 Largest Inventory Capacity 20 | 8 20 20 20 Average Capacity 18 | 6 14 20 20 Most Carried 20 | 7 7 8 20 Average Carried 12 | 4 6 7 15 Final Capacity 20 | 8 20 20 20 Final Carried 20 | 6 7 8 20 Class Distribution -------------------- 88% | Mutant 11% | Scavenger-Mutant Dominant Class ---------------- Mutant | -10/Materials Mutant | -10/Mines Mutant | -10/Subcaves Resources | -11 -10 -10 -10 ----------- Run | Yrd Mat Min Sub Matter Collected 484 | 242 . 25 217 Remotely . | . . . . Salvage Created 250 | . . 37 213 Parts 23 | . . 7 16 Haulers Intercepted . | . . . . Recyclers Shooed . | . . . . Parts Field Recycled . | . . . . Retrieved Matter . | . . . . Parts Self-Destructed 13 | . . . 13 Prevented . | . . . . Kills | -11 -10 -10 -10 ------- Run | Yrd Mat Min Sub Combat Hostiles Destroyed 11 | . . 3 8 Guns 5 | . . 3 2 Cannons 1 | . . . 1 AOE 5 | . . . 5 Classes Destroyed 2 | . . 1 1 Swarmer 3 | . . 3 . Subdweller 8 | . . . 8 Best Kill Streak 3 | . . 3 3 Combat Bots Only 3 | . . 3 3 Max Kills in Single Turn 2 | . . 1 2 Gunslinging 1 | . . . 1 Exploded 1 | . . . 1 Melee . | . . . . Uniques/NPCs Destroyed . | . . . . Combat | -11 -10 -10 -10 -------- Run | Yrd Mat Min Sub Hostile Shots Fired 57 | . . 20 37 Missed 15 | . . 4 11 Hits 42 | . . 16 26 Projectile 42 | . . 16 26 Damage Taken 739 | . . 127 612 Core 259 | . . 23 236 Absorbed by Shields . | . . . . Core Remaining (%) 100 | 100 . . . Volleys Fired 37 | . 1 9 27 Largest 2 | . 2 2 2 Hottest 66 | . 40 40 66 Shots Fired 62 | . 2 18 42 Gun 38 | . 2 18 18 Cannon 12 | . . . 12 Launcher 12 | . . . 12 Special . | . . . . Kinetic 50 | . 2 18 30 Thermal . | . . . . Explosive 12 | . . . 12 Electromagnetic . | . . . . Robot Hit Streak 13 | . 1 8 13 Robot Miss Streak 4 | . 1 4 4 Penetration Max . | . . . . Secondary Targets 2 | . . 1 1 Max Gunslinging Chain 1 | . . 1 1 Shots Hit Robots 41 | . 1 11 29 Core Hits 24 | . . 6 18 Critical Kills . | . . . . Critical Parts Destroyed . | . . . . Critical Strikes . | . . . . Melee Attacks . | . . . . Impact . | . . . . Slashing . | . . . . Piercing . | . . . . Sneak Attacks . | . . . . Combat Hostiles . | . . . . Follow-up Attacks . | . . . . Damage Inflicted 1140 | . 7 87 1046 Guns 290 | . 7 87 196 Cannons 123 | . . . 123 Explosions 727 | . . . 727 Melee . | . . . . Ramming . | . . . . Kinetic 413 | . 7 87 319 Thermal . | . . . . Explosive 727 | . . . 727 Electromagnetic . | . . . . Impact . | . . . . Slashing . | . . . . Piercing . | . . . . Highest Corruption . | . . . . Average Corruption . | . . . . Corruption Purged . | . . . . Corruption Blocked . | . . . . Overload Shots . | . . . . Overflow Damage 3 | . . . 3 Projectiles . | . . . . Explosions 3 | . . . 3 Melee . | . . . . Knockbacks 1 | . . . 1 Impact . | . . . . Kinetic 1 | . . . 1 Secondary . | . . . . Self-Inflicted Damage 45 | . . . 45 Shots 1 | . . . 1 Rammed . | . . . . Targets Rammed . | . . . . Kicked . | . . . . Crushed . | . . . . Highest Temperature . | . . . . Average Temperature . | . . . . Received Heat Transfer 114 | . . . 114 Siege Activations . | . . . . Martial Activations . | . . . . Shielding Activations . | . . . . Robots Disrupted . | . . . . Combat Hostiles . | . . . . Robots Corrupted . | . . . . Combat Hostiles . | . . . . Parts Fried . | . . . . Impact Corruptions . | . . . . Robots Melted . | . . . . Combat Hostiles . | . . . . Parts Melted . | . . . . Heat Transferred . | . . . . Parts Sabotaged . | . . . . Parts Stolen . | . . . . Parts Stripped . | . . . . Power Chain Reactions . | . . . . Alert | -11 -10 -10 -10 ------- Run | Yrd Mat Min Sub Maximum Alert Level . | . . . . Low Security (%) 100 | 100 100 100 . Level 1 . | . . . . Level 2 . | . . . . Level 3 . | . . . . Level 4 . | . . . . Level 5 . | . . . . High Security . | . . . . Max Security . | . . . . Peak Influence 80 | . . 80 . Initial . | . . . . Average 21 | . . 40 . Influence Increases 100 | . . 100 . Destroy 0b10 Robot/C 60 | . . 60 . Destroy Leader 10 | . . 10 . Lose Combat Pursuer 30 | . . 30 . Influence Decreases 100 | . . 100 . Time Decay 100 | . . 100 . Squads Dispatched 1 | . 1 . . Investigation 1 | . 1 . . Extermination . | . . . . Reinforcement . | . . . . Assault . | . . . . Garrison . | . . . . Intercept . | . . . . Searches Triggered . | . . . . Construction Impeded . | . . . . Haulers Reinforced . | . . . . Active Scanning Responses . | . . . . Cargo Convoy Interrupts . | . . . . Stealth | -11 -10 -10 -10 --------- Run | Yrd Mat Min Sub Distress Signals . | . . . . Communications Jammed . | . . . . Distress Signals . | . . . . Times Spotted 18 | . 4 4 10 Peak Tracking Total 3 | . 3 3 3 Tactical Retreats 1 | . . 1 . Traps | -11 -10 -10 -10 ------- Run | Yrd Mat Min Sub Traps Triggered 1 | . 1 . . Indirectly . | . . . . Trap Hack Attempts . | . . . . Triggered . | . . . . Disarmed . | . . . . Reprogrammed . | . . . . Reused . | . . . . Traps Extracted . | . . . . Installed . | . . . . Triggered . | . . . . Machines | -11 -10 -10 -10 ---------- Run | Yrd Mat Min Sub Machines Disabled . | . . . . Max in Single Turn . | . . . . Machines Repaired . | . . . . Machines Dismantled . | . . . . Machines Sabotaged . | . . . . Overloaded Fab Kills . | . . . . Hacking | -11 -10 -10 -10 --------- Run | Yrd Mat Min Sub Machines Accessed . | . . . . Terminals . | . . . . Fabricators . | . . . . Repair Stations . | . . . . Recycling Units . | . . . . Scanalyzers . | . . . . Garrison Access . | . . . . Total Hacks . | . . . . Successful . | . . . . Failed . | . . . . Catastrophic . | . . . . Database Lockouts . | . . . . Manual . | . . . . Terminals . | . . . . Fabricators . | . . . . Repair Stations . | . . . . Recycling Units . | . . . . Scanalyzers . | . . . . Garrison Access . | . . . . Terminal Hacks . | . . . . Fabricator Hacks . | . . . . Repair Station Hacks . | . . . . Recycling Unit Hacks . | . . . . Scanalyzer . | . . . . Garrison Access Hacks . | . . . . Unauthorized Hacks . | . . . . Terminals . | . . . . Fabricators . | . . . . Repair Stations . | . . . . Recycling Units . | . . . . Scanalyzers . | . . . . Garrison Access . | . . . . Data Cores Recovered . | . . . . Used . | . . . . Hacking Detections . | . . . . Full Trace Events . | . . . . Feedback Events . | . . . . Feedback Blocked . | . . . . Robot Schematics Acquired . | . . . . Robots Built . | . . . . Authchips . | . . . . Time . | . . . . Total Robot Build Rating . | . . . . Part Schematics Acquired . | . . . . Parts Built . | . . . . Authchips . | . . . . Time . | . . . . Total Part Build Rating . | . . . . Parts Repaired . | . . . . Time . | . . . . Parts Recycled . | . . . . Recycled Matter . | . . . . Retrieved Matter . | . . . . Retrieved Components . | . . . . Parts Scanalyzed . | . . . . Part Schematics Acquired . | . . . . Parts Damaged . | . . . . Bothacking | -11 -10 -10 -10 ------------ Run | Yrd Mat Min Sub Used RIF Installer . | . . . . Robots Hacked . | . . . . Non-combat . | . . . . Combat . | . . . . Robot Hacks Applied . | . . . . Relay Couplers Released . | . . . . Fabnet Peak Effective % . | . . . . Robots Rewired . | . . . . Allies Hacked . | . . . . Hacks Repelled . | . . . . Allies | -11 -10 -10 -10 -------- Run | Yrd Mat Min Sub Total Allies 3 | . . 3 . Largest Group 3 | . . 3 3 Highest-Rated Group 40 | . . 40 40 Highest-Rated Ally 16 | . . 16 16 Total Orders . | . . . . Ally Attacks 30 | . . . 30 Total Damage 182 | . . . 182 Kills 1 | . . . 1 Allies Corrupted . | . . . . Allies Melted . | . . . . Intel | -11 -10 -10 -10 ------- Run | Yrd Mat Min Sub Active Infowar (turns) . | . . . . Robot Analysis Total . | . . . . Derelict Logs Recovered . | . . . . Drone Launches . | . . . . Drone Recoveries . | . . . . Exploration | -11 -10 -10 -10 ------------- Run | Yrd Mat Min Sub Turns Passed 1283 | 80 112 215 876 Spaces Moved 1035 | 56 93 174 712 Core 6 | 6 . . . Treads . | . . . . Legs 82 | 50 32 . . Wheels 947 | . 61 174 712 Hover . | . . . . Flight . | . . . . Fastest Speed 50 | 50 90 105 105 Average Speed 108 | 112 109 105 109 Slowest Speed 155 | 120 120 105 155 Overloaded Moves . | . . . . Propulsion Burnouts . | . . . . Robots Hopped . | . . . . Potential Cave-ins . | . . . . Cave-ins Triggered . | . . . . Exploration Rate (%) 33 | 5 26 46 57 Regions Visited 3 Branch Regions 2 Pre-discovered Areas . | . . . . Known Exits Taken . | . . . . Unknown Exits Taken 3 | 1 1 1 . Scrap Searched 6 | . . . 6 Spaces Dug . | . . . . Terrain Destroyed 77 | . . . 77 Melee . | . . . . Projectile . | . . . . AOE 77 | . . . 77 Terrain Rammed . | . . . . Walls Destroyed . | . . . . Machines Disabled . | . . . . Actions | -11 -10 -10 -10 --------- Run | Yrd Mat Min Sub Total 1132 | 71 99 191 771 Wait 10 | . . 8 2 Move 1032 | 55 92 173 712 Hop . | . . . . Pick Up 27 | 9 2 1 15 Fast Attach 3 | 3 . . . Attach 5 | 3 1 . 1 Detach . | . . . . Swap 13 | 1 3 . 9 Drop 5 | . . . 5 Fire 37 | . 1 9 27 Melee . | . . . . Ram . | . . . . Kick . | . . . . Crush . | . . . . Escape Stasis . | . . . . Rewire . | . . . . Trap . | . . . . Miscellaneous . | . . . . Route ------- -11/Scrapyard -10/Materials -10/Mines (discovered 2 exits: [*Mat] / [*Sub]) -10/Subcaves (discovered 2 exits: [*Mat x2]) History --------- Turn | Location | Event 5 | -11/Scrapyard | Discovered new exit (range 15) 81 | -11/Scrapyard | Entered Materials 176 | -10/Materials | Discovered new exit (range 14) 193 | -10/Materials | Entered Mines 291 | -10/Mines | Discovered new exit (range 11) 301 | -10/Mines | Build established: Mutant 303 | -10/Mines | Assisted by bots powering up and referring to "LRC-V3" 325 | -10/Mines | Received a Rocket Launcher from a helpful Derelict 397 | -10/Mines | Discovered new exit (range 6) 408 | -10/Mines | Entered Subcaves 408 | -10/Subcaves | Accompanied by 3 allies 816 | -10/Subcaves | Shifting Twisted Machinery released Mak. Light Armor Plating 985 | -10/Subcaves | A swath of the cavern ceiling suddenly collapsed 1011 | -10/Subcaves | Discovered new exit (range 14) 1178 | -10/Subcaves | Discovered new exit (range 3) 1252 | -10/Subcaves | Core integrity fell below 50% 1278 | -10/Subcaves | Core integrity fell below 20% 1284 | -10/Subcaves | Destroyed by OS-XVM(R) with Subdweller Machine Gun Last Messages --------------- 01069_ Found Battle Cannon. 01069_ Found 56 Matter. 01071_ Acquired Battle Cannon. 01072_ Searching scrap... 01072_ Found Scrap Shield. 01072_ Found 32 Matter. 01074_ Dropped Lgt. Assault Rifle. 01075_ Acquired Scrap Shield. 01088_ Dropped Wheel. 01092_ Dropped Lgt. Ion Engine. 01142_ Acquired 8 matter. 01148_ Acquired 10 matter. 01159_ Acquired 2 matter. 01178_ EXIT=FOUND 01251_ B4-B80(R) knocked back. 01263_ B4-B80(R) destroyed. 01274_ Battle Cannon destroyed. 01274_ Destroyed Battle Cannon. 01276_ 6Z-S2K(R) destroyed. 01278_ SR-44M(R) destroyed. Map ----- +----------------------------------------------------+ | ????????# ####?##???????????????????? | | ????????## % ## #???????????????????? | | ?????????# ## #???????????????????? | | ?????# ## #???????????????????? | | ????# ## ### # ###???????????????????? | | ????? ???#### #?# # ###???????????????????? | | ??????????????## ##?# # ######??????????????? | | ???????????????###???# """ ##?????????????? | | ????????????????????# ## "" #?????????????? | | ???????????????????# ###" ##?????????????? | | ???????????????????### ###"" ###??????????????? | | ?????????????????????####?## #????????????????? | | ?????????????????????####### ##????????????????? | | ????????????????????## " #?????????????????? | | ???????????????????## # #????????????????? | | ???????????????????# ## ""##????????????????? | | ??????????????????## ## ####?????????????????? | | ?????????????????## ## ?????????????????????? | | ????????????????## ##?????????????????????? | | ????????????????# #??????????????????????? | | ?????????????#### % ###?????????# ??????????? | | ?????????????# % ##???????# ?????????? | | ???????????"""" #????? ?????????? | | ????????????"#"" ?## ????????? | | ?????????????### ## R #??????????? | | ???????????????#" #?# @ % #??????????? | | ???????????????# #??## #??????????? | | ???????????????##??## #??????????? | | ???????????????????# ##### #??????????? | | ?????????????????### ##?????? ## ##??????????? | | ?????????????????# #???????? #??????????????? | | ?????????????????# ###????????? #??????????????? | | ?????????????????###?????????????##??????????????? | | ?????????????????????????????????????????????????? | | ?????????????????????????????????????????????????? | | ?????????????????????????????????????????????????? | | ?????????????????????????????????????????????????? | | ?????????????????????????????????????????????????? | | ?????????????????????????????????????????????????? | | ?????????????????????????????????????????????????? | | ?????????????????????????????????????????????????? | | ?????????????????????????????????????????????????? | | ?????????????????????????????????????????????????? | | ?????????????????????????????????????????????????? | | ?????????????????????????????????????????????????? | | ?????????????????????????????????????????????????? | | ?????????????????????????????????????????????????? | | | | | | | +----------------------------------------------------+ Best States ------------- Heat Dissipation 35 Energy Generation 15 Energy Capacity 200 Matter Stores 300 Matter Capacity 300 Sight Range 16 Terrain Scan Density 10 Armor Coverage 100 Evasion (%) 55 Item Schematics ----------------- None Robot Schematics ------------------ None Fabricated ------------ Nothing Repaired ---------- Nothing Alien Tech Used ----------------- None Achievements -------------- None Challenges ------------ None Game ------ Seed MyomerEncryptedVibroblade Manual? 0 Play Time 00:11:18 Cumulative 245.0 hours Start 2025.05.08 @ 15:30:03 End 2025.05.08 @ 15:40:22 Sessions 1 Manual Loads 0 Difficulty Rogue Special Mode None Game No. 363 Rogue 363 Adventurer 0 Explorer 0 Win Type - Total 1 Types 1/0/0/0/0/0/0/0/0/0 Lore% 56 Gallery% 60 Achievement% 43 Wizard Run 0 Options --------- Layout 1 ASCII 0 Keyboard 0 Movement Mouse Keybinds 0 Fullscreen 2 Font 24/Smallcaps Map View 50x35 Zoom Use 0% Tactical HUD 1 Map Filters NONE Filters NONE Steam 1 RUN: f0d27d36-b6e3-46ec-89d4-e358ae8e0019